fUSD/lending_fUSD_20250227
["ID","MTS","AMOUNT","RATE_DAILY","PERIOD"]
[354751219,1740665191307,-234.65348057,0.00056712,120]
[354751220,1740665191348,-500.0,0.00056712,120]
[354751221,1740665191387,-846.31,0.00056712,120]
[354751222,1740665191426,-500.0,0.00056712,120]
[354751223,1740665191465,-500.0,0.00056712,120]
[354751224,1740665191504,-500.0,0.00056712,120]
[354751225,1740665191543,-160.04,0.00056712,120]
[354751226,1740665191699,-2765.13,0.00056712,120]
[354751227,1740665191741,-2676.83,0.00056712,120]
[354751228,1740665191783,-500.0,0.00056712,120]
[354751229,1740665191826,-500.0,0.00056712,120]
[354751230,1740665191867,-625.25,0.00056712,120]
[354751231,1740665191909,-500.0,0.00056712,120]
[354751232,1740665191951,-500.0,0.00056712,120]
[354751233,1740665191993,-500.0,0.00056712,120]
[354751234,1740665192034,-500.0,0.00056712,120]
[354751235,1740665192077,-636.62,0.00056712,120]
[354751236,1740665192120,-500.0,0.00056712,120]
[354751237,1740665192167,-500.0,0.00056712,120]
[354751238,1740665192210,-500.0,0.00056712,120]
[354751239,1740665192250,-500.0,0.00056712,120]
[354751240,1740665192294,-169.57,0.00056712,120]
[354751241,1740665192337,-763.79,0.00056712,120]
[354751242,1740665192377,-500.0,0.00056712,120]
[354751243,1740665192418,-500.0,0.00056712,120]
[354751244,1740665192460,-500.0,0.00056712,120]
[354751245,1740665192502,-500.0,0.00056712,100]
[354751246,1740665192544,-500.0,0.00056712,120]
[354751247,1740665192586,-500.0,0.00056712,120]
[354751248,1740665192629,-650.24,0.00056712,120]
[354751249,1740665192672,-500.0,0.00056712,120]
[354751250,1740665192713,-766.1,0.00056712,120]
[354751251,1740665192755,-500.0,0.00056712,120]
[354751252,1740665192798,-500.0,0.00056712,120]
[354751253,1740665192839,-500.0,0.00056712,120]
[354751254,1740665192882,-500.0,0.00056712,120]
[354751255,1740665192923,-403.51451562,0.00056754,120]
[354751256,1740665192964,-439.68,0.00056795,30]
[354751257,1740665193005,-150.0,0.00056795,30]
[354751258,1740665193047,-150.0,0.00056795,30]
[354751259,1740665193091,-439.68,0.00056795,30]
[354751260,1740665193134,-150.0,0.00056795,30]
[354751261,1740665193176,-439.68,0.00056795,30]
[354751262,1740665193218,-150.0,0.00056795,30]
[354751263,1740665193262,-515.751643,0.000568,107]
[354751264,1740665193307,-1000.0,0.00056873,60]
[354751265,1740665193351,-153.163,0.00056888,30]
[354751266,1740665193392,-164.99023085,0.000569,35]
[354751267,1740665193434,-265.95852352,0.000569,66]
[354751268,1740665193476,-340.68756266,0.0005697,120]
[354751269,1740665193520,-595.5,0.0005698,30]
[354751270,1740665193562,-671.81,0.00056986,120]
[354751271,1740665193605,-354.11337421,0.00056986,120]
[354751272,1740665193647,-549.79,0.00056986,120]
[354751273,1740665193687,-342.05200749,0.00056986,120]
[354751274,1740665193727,-500.0,0.00056986,120]
[354751275,1740665193767,-1469.13,0.00056986,120]
[354751276,1740665193807,-501.68721645,0.00056986,120]
[354751277,1740665193850,-399.06966376,0.00056986,120]
[354751278,1740665193894,-500.0,0.00056986,120]
[354751279,1740665193936,-500.0,0.00056986,120]
[354751280,1740665193977,-846.31,0.00056986,120]
[354751281,1740665194020,-500.0,0.00056986,120]
[354751282,1740665194062,-500.0,0.00056986,120]
[354751283,1740665194104,-2676.83,0.00056986,120]
[354751284,1740665194147,-2765.13,0.00056986,120]
[354751285,1740665194190,-500.0,0.00056986,120]
[354751286,1740665194233,-500.0,0.00056986,120]
[354751287,1740665194276,-500.0,0.00056986,120]
[354751288,1740665194319,-500.0,0.00056986,120]
[354751289,1740665194361,-500.0,0.00056986,120]
[354751290,1740665194403,-500.0,0.00056986,120]
[354751291,1740665194444,-500.0,0.00056986,120]
[354751292,1740665194485,-500.0,0.00056986,120]
[354751293,1740665194526,-500.0,0.00056986,120]
[354751294,1740665194570,-500.0,0.00056986,120]
[354751295,1740665194614,-763.79,0.00056986,120]
[354751296,1740665194655,-500.0,0.00056986,120]
[354751297,1740665194697,-500.0,0.00056986,120]
[354751298,1740665194739,-553.62,0.00056986,120]
[354751299,1740665194781,-500.0,0.00056986,100]
[354751300,1740665194824,-504.14,0.00056986,120]
[354751301,1740665194870,-500.0,0.00056986,120]
[354751302,1740665194914,-650.24,0.00056986,120]
[354751303,1740665194958,-503.84968189,0.00056986,120]
[354751304,1740665195001,-766.1,0.00056986,120]
[354751305,1740665195047,-500.0,0.00056986,120]
[354751306,1740665195090,-500.0,0.00056986,120]
[354751307,1740665195136,-500.0,0.00056986,120]
[354751308,1740665195179,-500.0,0.00056986,120]
[354751309,1740665195220,-595.0,0.0005699,30]
[354751310,1740665195264,-2174.41,0.00057,120]
[354751311,1740665195306,-1000000.0,0.00057,120]
[354751312,1740665195347,-151.0,0.00057,120]
[354751313,1740665195387,-316.339286,0.00057,120]
[354751314,1740665195427,-316.339286,0.00057,120]
[354751315,1740665195466,-167.828075,0.00057,120]
[354751316,1740665195516,-167.828075,0.00057,120]
[354751317,1740665195561,-184.975,0.00057,120]
[354751318,1740665195604,-174.552719,0.00057,120]
[354751319,1740665195647,-184.975,0.00057,120]
[354751320,1740665195688,-174.552719,0.00057,120]
[354751321,1740665195896,-204.88096,0.00057,120]
[354751322,1740665195938,-204.88096,0.00057,120]
[354751323,1740665195977,-151.0,0.00057,120]
[354751324,1740665196016,-238.559576,0.00057,120]
[354751325,1740665196056,-2692.84818,0.00057,93]
[354751326,1740665196098,-151.0,0.00057,120]
[354751327,1740665196139,-203.233758,0.00057,120]
[354751328,1740665196181,-203.233758,0.00057,120]
[354751329,1740665196226,-151.0,0.00057,120]
[354751330,1740665196268,-843.64,0.00057,120]
[354751331,1740665196314,-2508.909827,0.00057,120]
[354751332,1740665196355,-2508.909827,0.00057,120]
[354751333,1740665196394,-151.0,0.00057,120]
[354751334,1740665196433,-635.548798,0.00057,120]
[354751335,1740665196474,-635.548798,0.00057,120]
[354751336,1740665196514,-151.0,0.00057,120]
[354751337,1740665196555,-150.0,0.00057127,120]
[354751338,1740665196596,-1000000.0,0.0005725,120]
[354751339,1740665196635,-151.0,0.0005725,120]
[354751340,1740665196672,-151.0,0.0005725,120]
[354751341,1740665196712,-151.0,0.0005725,120]
[354751342,1740665196751,-151.0,0.0005725,120]
[354751343,1740665196788,-151.0,0.0005725,120]
[354751344,1740665196830,-151.0,0.0005725,120]
[354751345,1740665196868,-206.410886,0.0005725,120]
[354751346,1740665196905,-206.410886,0.0005725,120]
[354751347,1740665196941,-190.529404,0.0005725,120]
[354751348,1740665196978,-266.693343,0.0005725,120]
[354751349,1740665197015,-152.48307,0.0005725,120]
[354751350,1740665197054,-362.905968,0.0005725,120]
[354751351,1740665197094,-362.905968,0.0005725,120]
[354751352,1740665197141,-151.0,0.0005725,120]
[354751353,1740665197184,-151.0,0.0005725,120]
[354751354,1740665197228,-188.799967,0.0005725,120]
[354751355,1740665197270,-151.0,0.0005725,30]
[354751356,1740665197313,-151.0,0.0005725,120]
[354751357,1740665197353,-151.0,0.0005725,120]
[354751358,1740665197393,-671.81,0.0005726,120]
[354751359,1740665197432,-549.79,0.0005726,120]
[354751360,1740665197474,-500.0,0.0005726,120]
[354751361,1740665197512,-1469.13,0.0005726,120]
[354751362,1740665197552,-345.26,0.0005726,120]
[354751363,1740665197593,-500.0,0.0005726,120]
[354751364,1740665197635,-846.31,0.0005726,120]
[354751365,1740665197675,-500.0,0.0005726,120]
[354751366,1740665197720,-500.0,0.0005726,120]
[354751367,1740665197764,-2676.83,0.0005726,120]
[354751368,1740665197806,-2765.13,0.0005726,120]
[354751369,1740665197849,-500.0,0.0005726,120]
[354751370,1740665197891,-312.8,0.0005726,120]
[354751371,1740665197934,-500.0,0.0005726,120]
[354751372,1740665197976,-500.0,0.0005726,120]
[354751373,1740665198018,-584.33,0.0005726,120]
[354751374,1740665198059,-500.0,0.0005726,120]
[354751375,1740665198099,-500.0,0.0005726,120]
[354751376,1740665198139,-375.46,0.0005726,120]
[354751377,1740665198181,-500.0,0.0005726,120]
[354751378,1740665198222,-500.0,0.0005726,120]
[354751379,1740665198264,-763.79,0.0005726,120]
[354751380,1740665198305,-500.0,0.0005726,120]
[354751381,1740665198346,-500.0,0.0005726,120]
[354751382,1740665198384,-500.0,0.0005726,100]
[354751383,1740665198423,-507.16307191,0.0005726,120]
[354751384,1740665198464,-650.24,0.0005726,120]
[354751385,1740665198505,-766.1,0.0005726,120]
[354751386,1740665198546,-500.0,0.0005726,120]
[354751387,1740665198587,-500.0,0.0005726,120]
[354751388,1740665198627,-174.03,0.0005726,120]
[354751389,1740665198666,-500.0,0.0005726,120]
[354751390,1740665198705,-4123.26549038,0.000573,120]
[354751391,1740665198743,-403.51451562,0.0005742,120]
[354751392,1740665198782,-2025.696327,0.0005744,120]
[354751393,1740665198823,-203002.24144033,0.000575,120]
[354751394,1740665200959,-500.0,0.00054794,120]
[354751395,1740665200999,-500.0,0.00054794,120]
[354751396,1740665201040,-500.0,0.00054794,120]
[354751397,1740665201083,-500.0,0.00054794,120]
[354751398,1740665201122,-500.0,0.00054794,120]
[354751399,1740665201164,-500.0,0.00054794,120]
[354751400,1740665201203,-203.25,0.00054794,120]
[354751401,1740665201241,-500.0,0.00054794,120]
[354751402,1740665201277,-601.87,0.00054794,120]
[354751403,1740665201314,-500.0,0.00054794,120]
[354751404,1740665201350,-313.1,0.00054794,120]
[354751405,1740665201387,-500.0,0.00055068,120]
[354751406,1740665201422,-500.0,0.00055068,120]
[354751407,1740665201458,-500.0,0.00055068,120]
[354751408,1740665201494,-500.0,0.00055068,120]
[354751409,1740665201530,-500.0,0.00055068,120]
[354751410,1740665201567,-229.78,0.00055342,120]
[354751411,1740665201604,-970.17968348,0.0005636,120]
[354751412,1740665201640,-970.17968348,0.0005636,120]
[354751413,1740665201676,-970.17968348,0.0005636,120]
[354751414,1740665201712,-970.17968348,0.0005636,120]
[354751415,1740665201750,-970.17968348,0.0005636,120]
[354751416,1740665201787,-970.17968348,0.0005636,120]
[354751417,1740665201826,-970.17968348,0.0005636,120]
[354751418,1740665201863,-970.17968348,0.0005636,120]
[354751419,1740665201905,-500.0,0.0005698,42]
[354751420,1740665201942,-500.0,0.0005698,42]
[354751421,1740665201980,-500.0,0.0005698,42]
[354751422,1740665202021,-500.0,0.0005698,42]
[354751423,1740665202059,-500.0,0.0005698,42]
[354751424,1740665202099,-500.0,0.0005698,42]
[354751425,1740665202140,-500.0,0.0005698,42]
[354751426,1740665202181,-500.0,0.0005698,42]
[354751427,1740665202223,-500.0,0.0005698,42]
[354751428,1740665202269,-500.0,0.0005698,42]
[354751429,1740665202311,-796997.75855967,0.000575,120]
[354751430,1740665202351,-151.0,0.000575,120]
[354751431,1740665202389,-316.339286,0.000575,120]
[354751432,1740665202426,-316.339286,0.000575,120]
[354751433,1740665202465,-1000000.0,0.000575,120]
[354751434,1740665202502,-167.828075,0.000575,120]
[354751435,1740665202542,-167.828075,0.000575,120]
[354751436,1740665202583,-184.975,0.000575,120]
[354751437,1740665202623,-174.552719,0.000575,120]
[354751438,1740665202663,-184.975,0.000575,120]
[354751439,1740665202701,-174.552719,0.000575,120]
[354751440,1740665202739,-204.88096,0.000575,120]
[354751441,1740665202779,-204.88096,0.000575,120]
[354751442,1740665202819,-287.645605,0.000575,120]
[354751443,1740665202859,-188.170786,0.000575,120]
[354751444,1740665202898,-203.233758,0.000575,120]
[354751445,1740665202936,-203.233758,0.000575,120]
[354751446,1740665203106,-151.0,0.000575,120]
[354751447,1740665203150,-2508.909827,0.000575,120]
[354751448,1740665203189,-2508.909827,0.000575,120]
[354751449,1740665203234,-151.0,0.000575,120]
[354751450,1740665203274,-635.548798,0.000575,120]
[354751451,1740665203316,-635.548798,0.000575,120]
[354751452,1740665203356,-151.0,0.000575,120]
[354751453,1740665203397,-335.0,0.00057502,30]
[354751454,1740665203439,-549.79,0.00057534,120]
[354751455,1740665203483,-500.0,0.00057534,120]
[354751456,1740665203525,-1469.13,0.00057534,120]
[354751457,1740665203569,-500.0,0.00057534,120]
[354751458,1740665203612,-500.0,0.00057534,120]
[354751459,1740665203654,-500.0,0.00057534,120]
[354751460,1740665203696,-500.0,0.00057534,120]
[354751461,1740665203738,-500.0,0.00057534,120]
[354751462,1740665203779,-2765.13,0.00057534,120]
[354751463,1740665203821,-766.1,0.00057534,120]
[354751464,1740665203863,-500.0,0.00057534,120]
[354751465,1740665203904,-549.79,0.00057808,120]
[354751466,1740665203947,-500.0,0.00057808,120]
[354751467,1740665203991,-1469.13,0.00057808,120]
[354751468,1740665204035,-500.0,0.00057808,120]
[354751469,1740665204079,-500.0,0.00057808,120]
[354751470,1740665204121,-2765.13,0.00057808,120]
[354751471,1740665204166,-766.1,0.00057808,120]
[354751472,1740665204210,-500.0,0.00057808,120]
[354751473,1740665204252,-1000000.0,0.00058,120]
[354751474,1740665204293,-42036.74235793,0.00058,120]
[354751475,1740665204336,-151.0,0.00058,120]
[354751476,1740665204378,-151.0,0.00058,120]
[354751477,1740665204419,-151.0,0.00058,120]
[354751478,1740665204460,-151.0,0.00058,120]
[354751479,1740665204502,-206.410886,0.00058,120]
[354751480,1740665204542,-206.410886,0.00058,120]
[354751481,1740665204583,-362.905968,0.00058,120]
[354751482,1740665204624,-362.905968,0.00058,120]
[354751483,1740665204662,-151.0,0.00058,120]
[354751484,1740665204702,-151.0,0.00058,120]
[354751485,1740665204741,-151.0,0.00058,30]
[354751486,1740665204781,-151.0,0.00058,120]
[354751487,1740665204820,-151.0,0.00058,120]
[354751488,1740665204859,-1000000.0,0.00058,120]
[354751489,1740665204901,-167.828075,0.00058,120]
[354751490,1740665204940,-167.828075,0.00058,120]
[354751491,1740665204981,-184.975,0.00058,120]
[354751492,1740665205023,-174.552719,0.00058,120]
[354751493,1740665205064,-184.975,0.00058,120]
[354751494,1740665205105,-174.552719,0.00058,120]
[354751495,1740665205147,-204.88096,0.00058,120]
[354751496,1740665205189,-204.88096,0.00058,120]
[354751497,1740665205230,-203.233758,0.00058,120]
[354751498,1740665205270,-203.233758,0.00058,120]
[354751499,1740665205312,-151.0,0.00058,120]
[354751500,1740665205354,-2508.909827,0.00058,120]
[354751501,1740665205392,-2508.909827,0.00058,120]
[354751502,1740665205431,-151.0,0.00058,120]
[354751503,1740665205470,-635.548798,0.00058,120]
[354751504,1740665205509,-635.548798,0.00058,120]
[354751505,1740665205550,-151.0,0.00058,120]
[354751506,1740665205592,-549.79,0.00058082,120]
[354751507,1740665205635,-500.0,0.00058082,120]
[354751508,1740665205675,-1469.13,0.00058082,120]
[354751509,1740665205714,-500.0,0.00058082,120]
[354751510,1740665205753,-500.0,0.00058082,120]
[354751511,1740665205791,-2765.13,0.00058082,120]
[354751512,1740665205829,-766.1,0.00058082,120]
[354751513,1740665205867,-500.0,0.00058082,120]
[354751514,1740665205907,-335.0,0.00058094,30]
[354751515,1740665205945,-549.79,0.00058356,120]
[354751516,1740665205988,-500.0,0.00058356,120]
[354751517,1740665206030,-1469.13,0.00058356,120]
[354751518,1740665206074,-500.0,0.00058356,120]
[354751519,1740665206116,-500.0,0.00058356,120]
[354751520,1740665206160,-2765.13,0.00058356,120]
[354751521,1740665206204,-766.1,0.00058356,120]
[354751522,1740665206246,-195.66704757,0.00058356,120]
[354751523,1740665206286,-3272.8338182,0.00058497,30]
[354751524,1740665206329,-549.79,0.0005863,120]
[354751525,1740665206371,-500.0,0.0005863,120]
[354751526,1740665206412,-1469.13,0.0005863,120]
[354751527,1740665206454,-500.0,0.0005863,120]
[354751528,1740665206495,-542.96706335,0.0005863,120]
[354751529,1740665206535,-2765.13,0.0005863,120]
[354751530,1740665206574,-766.1,0.0005863,120]
[354751531,1740665206613,-151.0,0.0005863,120]
[354751532,1740665206652,-335.0,0.00058687,30]
[354751533,1740665206691,-151.0,0.00058705,120]
[354751534,1740665206729,-316.339286,0.00058705,120]
[354751535,1740665206768,-316.339286,0.00058705,120]
[354751536,1740665206809,-1184.0,0.0005879,120]
[354751537,1740665206849,-1000.0,0.000588,120]
[354751538,1740665206897,-154.28,0.000589,60]
[354751539,1740665206947,-154.28,0.000589,60]
[354751540,1740665207122,-154.28,0.000589,60]
[354751541,1740665207173,-154.28,0.000589,60]
[354751542,1740665207218,-549.79,0.00058904,120]
[354751543,1740665207260,-500.0,0.00058904,120]
[354751544,1740665207302,-1469.13,0.00058904,120]
[354751545,1740665207345,-500.0,0.00058904,120]
[354751546,1740665207386,-2765.13,0.00058904,120]
[354751547,1740665207428,-766.1,0.00058904,120]
[354751548,1740665207468,-455.02703598,0.0005897,30]
[354751549,1740665207511,-188452.09379422,0.00059,53]
[354751550,1740665207556,-877412.92906424,0.00059,120]
[354751551,1740665221171,-261.86,0.00054794,120]
[354751552,1740665221219,-500.0,0.00054794,120]
[354751553,1740665221263,-500.0,0.00054794,120]
[354751554,1740665221309,-250.85,0.00054794,120]
[354751555,1740665221361,-500.0,0.00055068,120]
[354751556,1740665221407,-970.17968348,0.0005636,120]
[354751557,1740665221454,-970.17968348,0.0005636,120]
[354751558,1740665221498,-970.17968348,0.0005636,120]
[354751559,1740665221541,-970.17968348,0.0005636,120]
[354751560,1740665221588,-151.0,0.0005725,120]
[354751561,1740665221636,-151.0,0.0005725,120]
[354751562,1740665221679,-1034.8761983,0.00057275,60]
[354751563,1740665221720,-151.0,0.000575,120]
[354751564,1740665221761,-151.0,0.000575,120]
[354751565,1740665221802,-217.580674,0.00058,120]
[354751566,1740665221844,-151.0,0.00058,120]
[354751567,1740665221887,-1000.0,0.00058941,60]
[354751568,1740665221930,-1000.0,0.00058949,60]
[354751569,1740665221974,-122587.07093576,0.00059,120]
[354751570,1740665222016,-5000.0,0.00059,120]
[354751571,1740665222061,-1000000.0,0.00059,120]
[354751572,1740665222105,-19245.76086035,0.00059,30]
[354751573,1740665222151,-151.0,0.00059,120]
[354751574,1740665222195,-156.280184,0.00059,120]
[354751575,1740665222238,-156.280184,0.00059,120]
[354751576,1740665222286,-151.0,0.00059,120]
[354751577,1740665222331,-151.0,0.00059,120]
[354751578,1740665222375,-219.024794,0.00059,120]
[354751579,1740665222419,-206.410886,0.00059,120]
[354751580,1740665222463,-206.410886,0.00059,120]
[354751581,1740665222507,-206.410886,0.00059,120]
[354751582,1740665222550,-206.410886,0.00059,120]
[354751583,1740665222593,-362.905968,0.00059,120]
[354751584,1740665222634,-151.0,0.00059,120]
[354751585,1740665222676,-362.905968,0.00059,120]
[354751586,1740665222723,-236.040332,0.00059,120]
[354751587,1740665222765,-151.0,0.00059,30]
[354751588,1740665222808,-151.0,0.00059,120]
[354751589,1740665222848,-151.0,0.00059,120]
[354751590,1740665222888,-316.339286,0.00059,120]
[354751591,1740665222927,-316.339286,0.00059,120]
[354751592,1740665222965,-167.828075,0.00059,120]
[354751593,1740665223005,-167.828075,0.00059,120]
[354751594,1740665223047,-184.975,0.00059,120]
[354751595,1740665223090,-174.552719,0.00059,120]
[354751596,1740665223135,-184.975,0.00059,120]
[354751597,1740665223184,-174.552719,0.00059,120]
[354751598,1740665223234,-204.88096,0.00059,120]
[354751599,1740665223278,-204.88096,0.00059,120]
[354751600,1740665223324,-203.233758,0.00059,120]
[354751601,1740665223370,-203.23375,0.00059,120]
[354751602,1740665223416,-151.0,0.00059,120]
[354751603,1740665223461,-2508.909827,0.00059,120]
[354751604,1740665223508,-2508.909831,0.00059,120]
[354751605,1740665223554,-238.24925,0.00059,120]
[354751606,1740665223603,-635.548798,0.00059,120]
[354751607,1740665223649,-635.54879,0.00059,120]
[354751608,1740665223696,-151.0,0.00059,120]
[354751609,1740665223741,-151.0,0.00059,120]
[354751610,1740665223786,-776.84,0.00059041,30]
[354751611,1740665223833,-549.79,0.00059178,120]
[354751612,1740665223880,-500.0,0.00059178,120]
[354751613,1740665223926,-1469.13,0.00059178,120]
[354751614,1740665223972,-500.0,0.00059178,120]
[354751615,1740665224021,-2765.13,0.00059178,120]
[354751616,1740665224066,-766.1,0.00059178,120]
[354751617,1740665224119,-22676.17559433,0.000592,120]
[354751618,1740665224166,-335.0,0.0005928,30]
[354751619,1740665224399,-449.91347,0.0005928,30]
[354751620,1740665224445,-549.79,0.00059452,120]
[354751621,1740665224489,-500.0,0.00059452,120]
[354751622,1740665224534,-1469.13,0.00059452,120]
[354751623,1740665224580,-500.0,0.00059452,120]
[354751624,1740665224625,-2765.13,0.00059452,120]
[354751625,1740665224670,-766.1,0.00059452,120]
[354751626,1740665224714,-27007.43,0.000597,57]
[354751627,1740665224758,-549.79,0.00059726,120]
[354751628,1740665224801,-370.26302915,0.00059726,120]
[354751629,1740665224845,-1469.13,0.00059726,120]
[354751630,1740665224892,-500.0,0.00059726,120]
[354751631,1740665224938,-2765.13,0.00059726,120]
[354751632,1740665224983,-766.1,0.00059726,120]
[354751633,1740665225028,-1184.0,0.0005979,120]
[354751634,1740665225074,-1184.0,0.0005979,120]
[354751635,1740665225118,-1184.0,0.0005979,120]
[354751636,1740665225165,-778.0,0.0005979,120]
[354751637,1740665225210,-335.0,0.00059873,30]
[354751638,1740665225254,-5080.0,0.000599,33]
[354751639,1740665225299,-400.0,0.0005997,30]
[354751640,1740665225346,-362.905968,0.00059999,120]
[354751641,1740665225393,-151.0,0.00059999,120]
[354751642,1740665225441,-362.905968,0.00059999,120]
[354751643,1740665225491,-549.79,0.00059999,120]
[354751644,1740665225538,-151.0,0.00059999,30]
[354751645,1740665225583,-151.0,0.00059999,120]
[354751646,1740665225630,-151.0,0.00059999,120]
[354751647,1740665225678,-153.799218,0.00059999,120]
[354751648,1740665225721,-316.339286,0.00059999,120]
[354751649,1740665225762,-316.339282,0.00059999,120]
[354751650,1740665225802,-167.828075,0.00059999,120]
[354751651,1740665225844,-167.828077,0.00059999,120]
[354751652,1740665225889,-184.975,0.00059999,120]
[354751653,1740665225937,-174.552719,0.00059999,120]
[354751654,1740665225983,-184.975,0.00059999,120]
[354751655,1740665226029,-174.55272,0.00059999,120]
[354751656,1740665226075,-204.88096,0.00059999,120]
[354751657,1740665226119,-204.88096,0.00059999,120]
[354751658,1740665226165,-1469.13,0.00059999,120]
[354751659,1740665226210,-500.0,0.00059999,120]
[354751660,1740665226256,-2765.13,0.00059999,120]
[354751661,1740665226302,-766.1,0.00059999,120]
[354751662,1740665226348,-13329.83577575,0.0006,120]
[354751663,1740665226396,-22397.1080618,0.0006,120]
[354751664,1740665226441,-10000.0,0.0006,30]
[354751665,1740665226487,-754.61689,0.0006,120]
[354751666,1740665226532,-1000000.0,0.0006,120]
[354751667,1740665226579,-1000000.0,0.0006,120]
[354751668,1740665226625,-1000000.0,0.0006,120]
[354751669,1740665226669,-693382.86948564,0.0006,120]
[354751671,1740665305198,-300.0,0.00014074,2]
[354751672,1740665305227,-150.0,0.00014366,2]
[354751673,1740665305254,-500.0,0.00014658,2]
[354751674,1740665305283,-964.149,0.000147,2]
[354751675,1740665305311,-170.702,0.000147,2]
[354751676,1740665305337,-572.5368251,0.000148,2]
[354751677,1740665363371,-155.62,0.00024712,30]
[354751678,1740665363413,-500.0,0.00031537,30]
[354751679,1740665363453,-500.0,0.00031537,30]
[354751680,1740665363495,-500.0,0.00031537,30]
[354751681,1740665363533,-500.0,0.00031537,30]
[354751682,1740665363576,-151.0,0.00045,120]
[354751683,1740665363612,-151.0,0.00045,120]
[354751684,1740665363649,-151.0,0.0004737,120]
[354751685,1740665363683,-151.0,0.00048466,120]
[354751686,1740665363717,-151.0,0.00049726,120]
[354751687,1740665363751,-500.0,0.00051284,60]
[354751688,1740665363786,-151.0,0.00051918,120]
[354751689,1740665363820,-151.0,0.00052082,120]
[354751690,1740665363854,-500.0,0.00054307,60]
[354751691,1740665363889,-500.0,0.00054365,60]
[354751692,1740665363923,-151.0,0.00054438,120]
[354751693,1740665363962,-572.83,0.00054794,120]
[354751694,1740665363997,-500.0,0.00054794,120]
[354751695,1740665364046,-500.0,0.00054794,120]
[354751696,1740665364085,-1276.66,0.00054794,120]
[354751697,1740665364124,-574.68,0.00054794,120]
[354751698,1740665364162,-500.0,0.00054794,120]
[354751699,1740665364201,-634.52,0.00054794,120]
[354751700,1740665364408,-500.0,0.00054794,120]
[354751701,1740665364449,-597.82,0.00054794,120]
[354751702,1740665364489,-487.41,0.00054794,120]
[354751703,1740665364528,-500.0,0.00054794,120]
[354751704,1740665364565,-572.05,0.00054794,120]
[354751705,1740665364601,-500.0,0.00054794,120]
[354751706,1740665364636,-615.1,0.00054794,120]
[354751707,1740665364671,-500.0,0.00054794,120]
[354751708,1740665364707,-500.0,0.00054794,120]
[354751709,1740665364743,-589.46,0.00054794,120]
[354751710,1740665364778,-1675.76,0.00054794,120]
[354751711,1740665364812,-500.0,0.00054794,120]
[354751712,1740665364847,-500.0,0.00054794,120]
[354751713,1740665364889,-500.0,0.00054794,120]
[354751714,1740665364934,-500.0,0.00054794,120]
[354751715,1740665364981,-500.0,0.00054794,120]
[354751716,1740665365022,-540.48,0.00054794,120]
[354751717,1740665365062,-500.0,0.00054794,120]
[354751718,1740665365102,-500.0,0.00054794,120]
[354751719,1740665365140,-531.35,0.00054794,120]